bitfinex-derivatives/quotes_SOLF0:USTF0_20260227
["timestamp","ask_amount","ask_price","bid_price","bid_amount"]
[1772182950747,3.33866596,87.59,87.54,3.33866596]
[1772182951055,3.33866596,87.6,87.541,5.56164659]
[1772182951246,3.33866596,87.6,87.551,5.56164659]
[1772182951456,3.33866596,87.61,87.551,5.56164659]
[1772182952047,10.2726,87.609,87.552,5.55839058]
[1772182952764,3.33866596,87.59,87.54,5.55835002]
[1772182952958,3.33866596,87.58,87.54,5.55835002]
[1772182953458,3.33866596,87.59,87.542,5.55835002]
[1772182954856,10.275,87.589,87.542,15.83875002]
[1772182955255,10.275,87.589,87.543,5.52349445]
[1772182956363,10.2741,87.597,87.556,5.49798928]
[1772182956860,3.33866596,87.6,87.556,5.49798928]
[1772182957967,10.2748,87.59,87.556,5.49798928]
[1772182958560,13.61346596,87.59,87.556,5.49798928]
[1772182958864,10.2757,87.583,87.556,5.49798928]
[1772182959563,10.2757,87.583,87.539,5.49380309]
[1772182959856,10.2764,87.577,87.539,5.49380309]
[1772182960055,3.33866596,87.58,87.539,5.49380309]
[1772182960257,3.33866596,87.59,87.539,5.49380309]
[1772182961959,10.2754,87.586,87.539,5.49380309]
[1772182962158,3.33866596,87.58,87.539,5.49380309]
[1772182962463,10.2754,87.586,87.539,5.49380309]
[1772182964261,10.2762,87.579,87.539,5.49380309]
[1772182964754,3.33866596,87.57,87.526,5.49076544]
[1772182965957,10.2777,87.566,87.526,5.49076544]
[1772182966961,10.2785,87.559,87.513,5.48766379]
[1772182967266,3.33866596,87.55,87.513,5.48766379]
[1772182967861,10.2799,87.547,87.513,5.48766379]
[1772182968263,3.33866596,87.55,87.513,5.48766379]
[1772182970062,3.33866596,87.56,87.513,5.48766379]
[1772182970658,3.33866596,87.57,87.515,5.48837236]
[1772182971662,3.33866596,87.56,87.515,5.48837236]
[1772182971865,3.33866596,87.56,87.518,10.2832]
[1772182972066,3.33866596,87.56,87.519,5.49203611]
[1772182976580,10.2788,87.557,87.519,5.49203611]
[1772182976770,3.33866596,87.55,87.519,5.49203611]
[1772182977177,13.61816596,87.55,87.502,5.49520824]
[1772182978678,10.2803,87.543,87.502,5.49520824]
[1772182979581,3.33866596,87.55,87.502,5.49520824]
[1772182980477,3.33866596,87.56,87.511,5.49732103]
[1772182980877,3.33866596,87.56,87.513,5.49732103]
[1772182981974,3.33866596,87.56,87.517,5.49818539]
[1772182982181,3.33866596,87.55,87.502,26.69515615]
[1772182982483,3.33866596,87.55,87.502,5.49818539]
[1772182983385,3.33866596,87.54,87.502,5.49818539]
[1772182984685,13.61816596,87.55,87.505,5.47648312]
[1772182985480,13.61816596,87.55,87.509,5.49855031]
[1772182985481,3.33866596,87.55,87.509,5.49855031]
[1772182985879,10.2786,87.558,87.509,5.49855031]
[1772182986484,3.33866596,87.55,87.509,5.49855031]
[1772182986977,10.2796,87.549,87.509,5.49855031]
[1772182989683,10.2808,87.539,87.497,5.50194159]
[1772182990280,3.33866596,87.54,87.499,5.50194159]
[1772182991888,3.33866596,87.54,87.502,5.51335538]
[1772182992386,3.33866596,87.56,87.502,5.51335538]
[1772182992580,3.33866596,87.55,87.502,5.51335538]
[1772182993578,13.61826596,87.55,87.507,10.2844]
[1772182994186,13.61826596,87.55,87.502,5.51335538]
[1772182994385,3.33866596,87.54,87.502,5.51335538]
[1772182995780,10.2803,87.543,87.502,5.51335538]
[1772182996687,10.281,87.538,87.491,5.566008]
[1772182996883,3.33866596,87.55,87.491,5.566008]
[1772182997879,3.33866596,87.54,87.495,5.55964489]
[1772182998086,10.2801,87.546,87.495,5.55964489]
[1772182998889,10.2801,87.546,87.498,10.2855]
[1772182999093,20.5504,87.587,87.499,5.55962077]
[1772182999094,10.2808,87.539,87.499,5.55962077]
[1772182999491,3.33866596,87.55,87.499,5.55962077]
[1772183000690,3.33866596,87.55,87.502,5.5600031]
[1772183000890,3.33866596,87.56,87.502,5.5600031]
[1772183001591,3.33866596,87.56,87.514,5.5885687]
[1772183001992,10.2773,87.569,87.523,5.5885687]
[1772183004787,3.33924348,87.56,87.523,5.5885687]
[1772183005588,10.2773,87.569,87.523,5.5885687]
[1772183005786,3.33924348,87.56,87.523,5.5885687]
[1772183006299,3.33924348,87.56,87.525,5.5949323]
[1772183006600,3.33924348,87.57,87.525,5.5949323]
[1772183006792,8.26396816,87.599,87.537,5.59491454]
[1772183007098,3.33924348,87.58,87.537,5.59491454]
[1772183007400,3.33924348,87.57,87.522,5.59690838]
[1772183007600,3.33924348,87.56,87.522,5.59690838]
[1772183008295,10.2773,87.569,87.522,5.59690838]
[1772183010098,3.33924348,87.56,87.522,5.59690838]
[1772183011895,13.61754348,87.56,87.522,5.59690838]
[1772183012890,10.2783,87.56,87.522,5.59690838]
[1772183013698,10.2792,87.553,87.504,5.5679952]
[1772183014795,10.2797,87.549,87.504,5.5679952]
[1772183017999,10.2797,87.549,87.505,15.83549426]
[1772183018194,10.2797,87.549,87.506,5.55079426]
[1772183019310,3.33924348,87.54,87.506,5.55079426]
[1772183019603,3.33924348,87.54,87.497,10.2857]
[1772183019809,3.33924348,87.54,87.495,5.52714272]
[1772183025311,3.33924348,87.54,87.478,21.19697076]
[1772183025512,31.16683658,87.565,87.467,5.5233389]
[1772183025715,3.33924348,87.52,87.467,5.5233389]
[1772183025919,3.33924348,87.53,87.482,5.5233389]
[1772183026514,3.33924348,87.54,87.49,3.33924348]
[1772183026713,10.2799,87.547,87.491,5.5233195]
[1772183026915,8.26396816,87.578,87.491,5.5233195]
[1772183027114,3.33924348,87.55,87.503,5.5233195]
[1772183027313,3.33924348,87.56,87.503,5.5233195]
[1772183028720,3.33924348,87.55,87.506,5.44670857]
[1772183029423,3.33924348,87.56,87.506,5.44670857]
[1772183030225,3.33924348,87.56,87.487,21.19697076]
[1772183030226,3.33924348,87.56,87.51,8.75407523]
[1772183030419,10.2773,87.569,87.511,5.41483175]
[1772183032024,10.2773,87.569,87.512,5.43296315]
[1772183034728,10.2782,87.561,87.512,5.43296315]
[1772183035125,10.2782,87.561,87.514,5.41687575]
[1772183035429,10.2782,87.561,87.521,5.41578326]
[1772183035929,13.61644348,87.57,87.521,5.41578326]
[1772183036226,3.33924348,87.59,87.531,5.41578326]
[1772183036432,10.2749,87.589,87.541,5.41578326]
[1772183037335,10.2739,87.598,87.551,5.41576077]
[1772183038435,10.2739,87.598,87.483,34.27]
[1772183038436,10.2729,87.607,87.561,5.41426431]
[1772183039229,10.2718,87.616,87.561,5.41426431]
[1772183039429,10.2718,87.616,87.5,34.27]
[1772183039430,10.2718,87.616,87.571,5.30823919]
[1772183041627,10.2727,87.608,87.571,5.30823919]
[1772183043232,10.2727,87.608,87.56,3.33924348]
[1772183043233,10.2737,87.599,87.558,5.31613254]
[1772183043634,3.33924348,87.6,87.558,5.31613254]
[1772183045024,10.2747,87.592,87.558,5.31613254]
[1772183046332,8.26396816,87.638,87.517,21.19697076]
[1772183046638,20.5477,87.599,87.502,5.28847434]
[1772183046839,10.2787,87.557,87.503,10.285]
[1772183047028,10.2787,87.557,87.504,5.28847434]
[1772183047228,3.33924348,87.57,87.511,5.28847434]
[1772183047839,3.33924348,87.55,87.511,5.28847434]
[1772183049033,10.2797,87.549,87.511,5.28847434]
[1772183050637,3.33924348,87.54,87.498,5.25398988]
[1772183050944,3.33924348,87.53,87.498,5.25398988]
[1772183051244,3.33924348,87.54,87.498,5.25398988]
[1772183052143,10.281,87.538,87.498,5.25398988]
[1772183055542,10.2799,87.547,87.498,5.25398988]
[1772183056145,3.33924348,87.54,87.498,5.25398988]
[1772183059442,3.33924348,87.56,87.501,5.26653322]
[1772183059747,3.33924348,87.56,87.511,5.26653322]
[1772183060350,10.2784,87.559,87.511,5.26653322]
[1772183062151,10.2775,87.567,87.514,5.26565531]
[1772183062345,3.33924348,87.56,87.514,5.26565531]
[1772183063549,3.33924348,87.55,87.514,5.26565531]
[1772183063953,3.33924348,87.56,87.514,5.26565531]
[1772183064451,13.61754348,87.56,87.514,5.26565531]
[1772183065250,13.61796503,87.56,87.514,5.26565531]
[1772183069449,10.2774,87.568,87.515,5.31568387]
[1772183070547,10.2764,87.577,87.525,5.31566561]
[1772183070748,10.2764,87.577,87.531,5.31566561]
[1772183071153,3.33966503,87.58,87.532,5.31566561]
[1772183071348,10.2753,87.586,87.532,5.31566561]
[1772183071653,10.2753,87.586,87.534,5.31121807]
[1772183071854,10.2753,87.586,87.541,5.31121807]
[1772183072055,10.2742,87.596,87.551,5.31121807]
[1772183072251,3.33966503,87.62,87.562,5.31121807]
[1772183074052,10.2722,87.612,87.564,5.30953691]
[1772183077852,3.33966503,87.62,87.571,5.31650587]
[1772183078758,3.33966503,87.63,87.581,5.31665306]
[1772183078953,192.90415994,87.65,87.581,5.31665306]
[1772183079254,3.33966503,87.63,87.581,5.31665306]
[1772183080158,10.2713,87.62,87.581,5.31665306]
[1772183081560,3.33966503,87.61,87.567,5.32558342]
[1772183081751,3.33966503,87.6,87.552,5.32558342]
[1772183082649,3.33966503,87.59,87.539,5.32556764]
[1772183082855,3.33966503,87.58,87.539,5.32556764]
[1772183083851,10.2762,87.578,87.539,5.32556764]
[1772183084250,3.33966503,87.58,87.539,5.32556764]
[1772183084454,3.33966503,87.58,87.486,20.5738]
[1772183084455,10.2752,87.587,87.541,5.31219098]
[1772183084653,10.2752,87.587,87.54,3.33966503]
[1772183084654,3.33966503,87.57,87.53,5.31219098]
[1772183085450,3.33966503,87.58,87.53,5.31219098]
[1772183085653,14.10225469,87.646,87.486,20.5738]
[1772183085654,3.33966503,87.6,87.541,5.41104057]
[1772183086960,10.2742,87.595,87.545,5.41102823]
[1772183087361,3.33966503,87.59,87.545,5.41102823]
[1772183088769,10.2753,87.586,87.545,5.41102823]
[1772183090855,3.33966503,87.59,87.545,5.41102823]
[1772183090856,10.2761,87.579,87.545,5.41102823]
[1772183091061,10.2761,87.579,87.535,10.2811]
[1772183091669,10.2761,87.579,87.535,15.69537411]
[1772183095469,10.2751,87.588,87.54,5.4167077]
[1772183095669,3.33966503,87.58,87.54,5.4167077]
[1772183097359,10.2749,87.589,87.54,5.4167077]
[1772183097561,13.61216503,87.61,87.551,5.34235273]
[1772183098961,13.61216503,87.61,87.554,5.34328399]
[1772183099264,13.61216503,87.61,87.506,20.5692]
[1772183099265,10.2716,87.618,87.571,5.34328399]
[1772183100967,3.33966503,87.6,87.558,5.36717588]
[1772183101773,3.33966503,87.61,87.575,15.64366546]
[1772183101974,3.33966503,87.62,87.576,5.36716546]
[1772183102371,3.33966503,87.62,87.577,10.2762]
[1772183102671,3.33966503,87.62,87.577,15.62471745]
[1772183103274,10.2716,87.618,87.577,5.34851745]
[1772183106968,3.33966503,87.61,87.567,10.2774]
[1772183107679,10.2727,87.608,87.564,5.35408477]
[1772183110171,3.33966503,87.62,87.57,3.33966503]
[1772183110477,196.24382497,87.65,87.591,5.35532465]
[1772183110674,196.24382497,87.65,87.593,5.35532465]
[1772183111577,10.268,87.648,87.595,5.3553149]
[1772183111879,10.268,87.648,87.549,34.27]
[1772183111880,3.33966503,87.67,87.611,5.3553149]
[1772183112478,8.48940983,87.697,87.561,34.27]
[1772183112479,3.33966503,87.62,87.561,34.27]
[1772183112676,3.33966503,87.59,87.562,10.51446885]
[1772183112977,3.33966503,87.61,87.562,10.51446885]
[1772183113176,3.33966503,87.61,87.563,10.2779]
[1772183113477,3.33966503,87.61,87.502,28.44778704]
[1772183113478,8.9338646,87.64,87.564,10.51446885]
[1772183113679,10.2715,87.619,87.564,10.51446885]
[1772183115781,10.2726,87.61,87.564,10.51446885]
[1772183121585,10.2711,87.622,87.564,10.51446885]
[1772183124784,10.27,87.632,87.564,10.51446885]
[1772183125986,10.27,87.632,87.576,10.51781265]
[1772183126788,10.61123658,87.677,87.587,10.57194788]
[1772183126985,8.9338646,87.67,87.587,10.57194788]
[1772183127495,10.2688,87.642,87.587,10.57194788]
[1772183128092,10.2677,87.651,87.588,10.57169077]
[1772183128293,8.92541273,87.68,87.588,10.57169077]
[1772183129985,10.2654,87.671,87.616,10.63136396]
[1772183130387,8.92541273,87.68,87.616,10.63136396]
[1772183130588,10.2663,87.663,87.616,10.63136396]
[1772183131787,8.92541273,87.68,87.616,10.63136396]
[1772183131993,10.2672,87.655,87.602,10.66512467]
[1772183133392,3.33279893,87.65,87.602,10.66512467]
[1772183133588,3.33279893,87.66,87.606,10.66295248]
[1772183133794,10.2661,87.664,87.611,10.66295248]
[1772183134495,10.2661,87.664,87.616,10.66295248]
[1772183137695,10.267,87.657,87.616,10.66295248]
[1772183138499,10.268,87.649,87.599,10.69993481]
[1772183138699,8.92351434,87.67,87.599,10.69993481]
[1772183140000,10.2669,87.658,87.603,10.69978917]
[1772183144005,10.2669,87.658,87.609,10.66984793]
[1772183144207,10.2659,87.666,87.609,10.66984793]
[1772183144602,8.92351434,87.69,87.627,10.71788292]
[1772183144804,14.10225469,87.724,87.525,479.8479]
[1772183144805,8.92351434,87.73,87.631,10.71788292]
[1772183145102,10.2589,87.726,87.651,10.71788292]
[1772183145305,10.2589,87.726,87.674,10.71788292]
[1772183145808,10.2599,87.718,87.674,10.71788292]
[1772183146010,1.98453998,87.745,87.674,10.71788292]
[1772183148010,10.2601,87.716,87.674,10.71788292]
[1772183152621,10.2591,87.725,87.674,10.71788292]
[1772183153518,8.92351434,87.75,87.676,11.01696164]
[1772183153519,10.258,87.734,87.676,11.01696164]
[1772183154324,10.2569,87.744,87.69,11.01696164]
[1772183154725,8.92351434,87.75,87.69,11.01696164]
[1772183155318,3.32633052,87.73,87.69,11.01696164]
[1772183156625,10.2586,87.728,87.69,11.01696164]
[1772183157718,3.32633052,87.72,87.676,11.03792245]
[1772183157921,3.32633052,87.71,87.676,11.03792245]
[1772183158117,3.32633052,87.7,87.651,11.03792245]
[1772183158321,3.32633052,87.68,87.638,11.03792245]
[1772183158620,10.2644,87.679,87.638,11.03792245]
[1772183159923,3.32633052,87.68,87.579,11.02476724]
[1772183160126,3.32633052,87.63,87.582,11.02476724]
[1772183160528,159.607,87.713,87.535,159.9299]
[1772183160529,3.32633052,87.66,87.601,11.01904439]
[1772183160726,8.23065282,87.721,87.611,11.01904439]
[1772183160927,3.32633052,87.67,87.611,11.01904439]
[1772183161223,5.12989454,87.719,87.611,11.01904439]
[1772183161224,8.92351319,87.68,87.611,11.01904439]
[1772183161635,8.92351319,87.66,87.611,11.01904439]
[1772183162130,10.2674,87.654,87.611,11.01904439]
[1772183163230,10.2674,87.654,87.581,10.9610065]
[1772183163629,10.2689,87.641,87.581,10.9610065]
[1772183166434,10.2691,87.639,87.581,10.9610065]
[1772183167936,10.2676,87.652,87.581,10.9610065]
[1772183168943,10.2676,87.652,87.592,10.98328442]
[1772183169537,10.2664,87.662,87.602,10.98329609]
[1772183170742,10.2675,87.653,87.602,10.98329609]
[1772183171139,8.92351319,87.68,87.602,10.98329609]
[1772183172642,8.92351319,87.68,87.604,10.9749915]
[1772183173042,8.92351319,87.7,87.621,10.9749915]
[1772183173741,8.92351319,87.7,87.61,8.92351319]
[1772183173742,10.2637,87.685,87.629,10.97499947]
[1772183175249,10.2637,87.685,87.635,10.97541913]
[1772183176044,10.2646,87.677,87.624,21.24622704]
[1772183176246,10.2646,87.677,87.625,10.97542704]
[1772183176651,10.2656,87.669,87.625,10.97542704]
[1772183177042,8.92351319,87.68,87.625,10.97542704]
[1772183177949,10.2665,87.661,87.625,10.97542704]
[1772183181750,10.2665,87.661,87.607,10.96648363]
[1772183183345,10.2665,87.661,87.611,10.96680849]
[1772183183542,8.92351319,87.7,87.611,10.96680849]
[1772183184057,8.92351319,87.7,87.636,10.96681283]
[1772183185047,10.2636,87.686,87.636,10.96681283]
[1772183185455,8.92351319,87.7,87.636,10.96681283]
[1772183186957,10.2645,87.678,87.636,10.96681283]
[1772183187552,10.2635,87.687,87.636,10.96681283]
[1772183187749,8.92010316,87.72,87.636,10.96681283]
[1772183188252,8.92010316,87.7,87.603,11.02122143]
[1772183189850,10.2649,87.675,87.603,11.02122143]
[1772183190056,10.2649,87.675,87.628,11.02021604]
[1772183191658,10.2658,87.667,87.628,11.02021604]
[1772183202364,10.2649,87.675,87.631,10.89757103]
[1772183202660,8.92010316,87.7,87.631,10.89757103]
[1772183203858,10.2639,87.684,87.639,10.269]
[1772183204062,10.2639,87.684,87.64,10.89772502]
[1772183204260,8.92010316,87.72,87.64,10.89772502]
[1772183204456,8.35189283,87.719,87.64,10.89772502]
[1772183204655,8.35189283,87.718,87.64,10.89772502]
[1772183204860,8.35189283,87.718,87.621,21.19757788]
[1772183204861,8.35189283,87.717,87.649,10.90222463]
[1772183205062,8.35189283,87.719,87.649,10.90222463]
[1772183205260,8.35189283,87.718,87.649,10.90222463]
[1772183205463,8.35189283,87.719,87.649,10.90222463]
[1772183205667,8.35189283,87.718,87.649,10.90222463]
[1772183205867,10.2615,87.704,87.652,10.90233487]
[1772183206062,8.35189283,87.719,87.652,10.90233487]
[1772183206265,8.92010316,87.72,87.652,10.90233487]
[1772183206767,8.92010316,87.72,87.64,8.92010316]
[1772183206768,10.2603,87.715,87.656,10.90047023]
[1772183207968,10.2603,87.715,87.661,10.90058241]
[1772183208769,10.2611,87.708,87.661,10.90058241]
[1772183211381,10.2626,87.694,87.661,10.90058241]
[1772183212670,304.47901885,87.735,87.648,10.90093876]
[1772183212671,10.2635,87.686,87.648,10.90093876]
[1772183223182,10.2625,87.695,87.648,10.90093876]
[1772183223382,10.2625,87.695,87.651,10.92195906]
[1772183223985,3.32817427,87.72,87.661,10.92201634]
[1772183224178,3.32817427,87.72,87.67,3.32817427]
[1772183224385,3.32817427,87.72,87.671,10.92201634]
[1772183225185,3.32817427,87.71,87.671,10.92201634]
[1772183225891,10.2612,87.707,87.671,10.92201634]
[1772183228690,3.32817427,87.68,87.643,10.92126741]
[1772183228885,3.32817427,87.69,87.643,10.92126741]
[1772183229993,3.32817427,87.69,87.645,10.92132263]
[1772183230992,10.2632,87.689,87.645,10.92132263]
[1772183231498,10.2623,87.697,87.647,10.78129561]
[1772183231797,10.2623,87.697,87.651,10.78129561]
[1772183231996,3.32817427,87.7,87.651,10.78129561]
[1772183232192,10.2621,87.699,87.652,10.78129561]
[1772183232894,3.32817427,87.69,87.652,10.78129561]
[1772183236694,10.2629,87.692,87.652,10.78129561]
[1772183236892,3.32817427,87.71,87.652,10.78129561]
[1772183238105,3.32817427,87.7,87.662,10.74677206]
[1772183238706,3.32817427,87.69,87.631,10.76897396]
[1772183238903,3.32817427,87.69,87.644,10.76897396]
[1772183239604,10.262,87.699,87.65,10.7692551]
[1772183240606,3.32817427,87.69,87.65,10.7692551]
[1772183243106,3.32817427,87.68,87.65,10.7692551]
[1772183243805,3.32817427,87.68,87.632,10.77036744]
[1772183244006,3.32817427,87.67,87.632,10.77036744]
[1772183244311,3.32817427,87.66,87.619,10.77036744]
[1772183244706,3.32817427,87.66,87.62,10.77029535]
[1772183249217,3.33209749,87.66,87.62,10.77029535]
[1772183250518,3.33209749,87.66,87.621,10.2711]
[1772183250815,3.33209749,87.67,87.622,10.77424131]
[1772183251019,3.33209749,87.68,87.622,10.77424131]
[1772183251920,3.33209749,87.68,87.633,10.77448274]
[1772183252322,3.33209749,87.7,87.641,10.77448274]
[1772183252617,3.33209749,87.69,87.654,10.79446913]
[1772183254317,3.33209749,87.68,87.641,10.79478439]
[1772183262129,3.33209749,87.68,87.642,10.2686]
[1772183262334,3.33209749,87.68,87.643,10.83213185]
[1772183265833,8.33138122,87.721,87.643,10.83213185]
[1772183265834,3.33209749,87.67,87.643,10.83213185]
[1772183269739,3.33209749,87.67,87.634,10.2696]
[1772183269740,3.33209749,87.67,87.628,10.83534708]
[1772183269940,13.59749749,87.67,87.628,10.83534708]
[1772183271138,3.33209749,87.66,87.628,10.83534708]
[1772183272136,8.33138122,87.698,87.646,10.83565808]
[1772183272338,3.33209749,87.69,87.646,10.83565808]
[1772183273235,3.33209749,87.68,87.646,10.83565808]
[1772183274644,10.2632,87.689,87.646,10.83565808]
[1772183274839,10.2623,87.697,87.646,10.83565808]
[1772183275436,10.2623,87.697,87.649,10.90433185]
[1772183277338,3.33209749,87.69,87.649,10.90433185]
[1772183279145,3.33209749,87.69,87.65,10.2677]
[1772183279343,3.33209749,87.69,87.651,10.91191613]
[1772183281444,8.33138122,87.724,87.653,10.91742405]
[1772183281644,3.33209749,87.72,87.661,10.91742405]
[1772183282637,3.33209749,87.7,87.661,10.91742405]
[1772183286348,3.33209749,87.71,87.661,10.91742405]
[1772183286547,3.33209749,87.72,87.661,10.91742405]
[1772183287949,10.2599,87.718,87.67,10.89049626]
[1772183288353,3.33209749,87.69,87.645,10.89049626]
[1772183289251,3.33209749,87.68,87.645,10.89049626]
[1772183289856,3.33209749,87.69,87.645,10.89049626]
[1772183290148,3.33209749,87.7,87.645,10.89049626]
[1772183290952,3.33209749,87.7,87.648,10.87550571]
[1772183291647,3.33209749,87.7,87.651,10.87560876]
[1772183293155,3.33209749,87.7,87.654,10.88355464]
[1772183294748,3.33209749,87.69,87.654,10.88355464]
[1772183296253,3.33209749,87.71,87.661,10.88565554]
[1772183296458,3.33209749,87.72,87.661,10.88565554]
[1772183297947,10.2598,87.719,87.672,10.88712522]
[1772183298449,20.5075,87.77,87.674,10.88427601]
[1772183298450,10.2588,87.727,87.674,10.88427601]
[1772183298649,3.33209749,87.72,87.674,10.88427601]
[1772183299859,13.59179749,87.72,87.676,10.2646]
[1772183300052,13.59179749,87.72,87.677,10.88436026]
[1772183302163,10.2587,87.728,87.68,10.89345737]
[1772183302463,3.33209749,87.75,87.691,10.89345737]
[1772183302662,3.33209749,87.74,87.691,10.89345737]
[1772183303969,3.33209749,87.74,87.699,10.90200632]
[1772183306255,3.33209749,87.74,87.701,10.2617]
[1772183306458,3.33209749,87.75,87.702,10.89122421]
[1772183307666,3.33209749,87.74,87.702,10.89122421]
[1772183309356,3.32570572,87.74,87.702,10.89122421]
[1772183309971,1.98368024,87.775,87.702,10.89122421]
[1772183310270,3.32570572,87.76,87.702,10.89122421]
[1772183310861,3.32570572,87.75,87.708,10.2609]
[1772183311062,3.32570572,87.75,87.709,10.88184886]
[1772183312163,3.32570572,87.75,87.71,10.2607]
[1772183312365,3.32570572,87.77,87.711,10.88192583]
[1772183312568,14.16253919,87.821,87.711,10.88192583]
[1772183312569,1.98347673,87.785,87.711,10.88192583]
[1772183312866,3.32570572,87.77,87.725,10.85998418]
[1772183313469,3.32570572,87.77,87.734,10.2579]
[1772183313664,3.32570572,87.77,87.734,10.86008252]
[1772183314772,3.32570572,87.76,87.721,10.8050958]
[1772183316270,3.32570572,87.77,87.721,10.8050958]
[1772183316870,10.2539,87.769,87.721,10.8050958]
[1772183320671,3.32570572,87.76,87.721,10.8050958]
[1772183322473,3.32570572,87.75,87.721,10.8050958]
[1772183322672,3.32570572,87.75,87.71,10.80970643]
[1772183324878,10.2551,87.759,87.71,10.80970643]
[1772183325076,3.32570572,87.75,87.71,10.80970643]
[1772183326674,3.32570572,87.75,87.717,10.82291457]
[1772183329777,3.32570572,87.74,87.705,10.83705652]
[1772183331871,3.32570572,87.73,87.705,10.83705652]
[1772183332270,10.2575,87.738,87.705,10.83705652]
[1772183332474,10.2575,87.738,87.691,10.84437204]
[1772183332669,3.32570572,87.73,87.691,10.84437204]
[1772183335980,3.32570572,87.71,87.674,10.8499321]
[1772183338495,3.32570572,87.7,87.658,10.87541757]
[1772183340790,3.32570572,87.69,87.646,10.85160485]
[1772183341190,3.32570572,87.68,87.646,10.85160485]
[1772183341694,3.32570572,87.67,87.622,10.8516827]
[1772183341897,3.32570572,87.66,87.622,10.8516827]
[1772183342193,3.32570572,87.65,87.622,10.8516827]
[1772183342699,3.32570572,87.66,87.622,10.8516827]
[1772183344097,3.32570572,87.65,87.622,10.8516827]
[1772183344496,3.32570572,87.66,87.622,10.8516827]
[1772183346500,3.32570572,87.65,87.608,10.98231899]
[1772183348101,3.32570572,87.66,87.608,10.98231899]
[1772183348904,3.32570572,87.65,87.608,10.98231899]
[1772183349495,3.32570572,87.65,87.609,10.2725]
[1772183349791,3.32570572,87.65,87.61,10.98401501]
[1772183351402,3.32570572,87.65,87.612,10.2722]
[1772183351701,3.32570572,87.66,87.613,11.00046352]
[1772183351902,3.32570572,87.65,87.613,11.00046352]
[1772183352301,3.32570572,87.65,87.615,10.2717]
[1772183352601,3.32570572,87.65,87.616,11.00046352]
[1772183352994,3.32570572,87.65,87.602,10.98999539]
[1772183353998,3.32570572,87.64,87.602,10.98999539]
[1772183354304,3.32570572,87.63,87.602,10.98999539]
[1772183355099,3.32570572,87.63,87.581,11.01725555]
[1772183356008,3.32570572,87.64,87.584,11.01721425]
[1772183357098,3.32570572,87.64,87.58,3.32570572]
[1772183357099,3.32570572,87.64,87.588,10.97795014]
[1772183357304,3.32570572,87.64,87.591,10.97795014]
[1772183357705,3.32570572,87.64,87.598,10.97793468]
[1772183358894,3.32570572,87.65,87.598,10.97793468]
[1772183359404,20.5228,87.705,87.532,34.22]
[1772183359405,3.32570572,87.66,87.611,10.97605465]
[1772183359603,3.32570572,87.67,87.611,10.97605465]
[1772183359807,10.2655,87.669,87.613,10.2721]
[1772183360106,10.2655,87.669,87.614,10.9760407]
[1772183360404,3.32570572,87.68,87.631,10.97735093]
[1772183360603,3.32570572,87.7,87.641,10.97735093]
[1772183361607,3.32570572,87.69,87.641,10.97735093]
[1772183362706,10.263,87.691,87.643,10.94369295]
[1772183363909,10.263,87.691,87.645,10.94369884]
[1772183364204,13.58770572,87.7,87.645,10.94369884]
[1772183364409,10.262,87.7,87.651,10.9417721]
[1772183365002,13.58770572,87.7,87.651,10.9417721]
[1772183365700,3.32570572,87.69,87.651,10.9417721]
[1772183366808,10.2634,87.688,87.651,10.9417721]
[1772183367310,3.32570572,87.71,87.651,10.9417721]
[1772183367608,10.2622,87.698,87.66,3.32570572]
[1772183368713,10.2622,87.698,87.651,10.9417721]
[1772183371609,10.2631,87.691,87.651,10.9417721]
[1772183378422,10.2621,87.699,87.652,10.88924638]
[1772183381823,10.2629,87.692,87.652,10.88924638]
[1772183388221,10.2621,87.699,87.653,10.88603595]
[1772183390126,10.2612,87.707,87.655,10.88988766]
[1772183390318,3.32903567,87.7,87.655,10.88988766]
[1772183391530,8.32751744,87.727,87.655,10.88988766]
[1772183391531,3.32903567,87.71,87.655,10.88988766]
[1772183393028,3.32903567,87.7,87.658,10.88316632]
[1772183396634,10.261,87.708,87.66,10.85247294]
[1772183397130,10.259,87.725,87.673,10.85247294]
[1772183397928,3.32903567,87.72,87.673,10.85247294]
[1772183399032,10.259,87.725,87.673,10.85247294]
[1772183399233,3.32903567,87.73,87.681,10.85304591]
[1772183399939,10.2576,87.737,87.681,10.85304591]
[1772183400838,3.32903567,87.72,87.681,10.85304591]
[1772183401439,3.32903567,87.75,87.701,10.85301488]
[1772183401636,3.32903567,87.76,87.71,3.32903567]
[1772183401836,3.32903567,87.76,87.711,10.85305328]
[1772183402141,3.32903567,87.76,87.643,34.22]
[1772183402142,3.32903567,87.74,87.696,10.85305328]
[1772183403237,3.32903567,87.75,87.701,10.86023334]
[1772183403438,3.32903567,87.77,87.721,10.8602682]
[1772183406546,3.32903567,87.76,87.721,10.8602682]
[1772183406747,3.32903567,87.75,87.691,10.84433505]
[1772183407040,3.32903567,87.74,87.691,10.84433505]